bitfinex-derivatives/quotes_ETHF0:USTF0_20250912
["timestamp","ask_amount","ask_price","bid_price","bid_amount"]
[1757678511612,1.40185897,4520.5,4520.0,0.1253]
[1757678511914,0.7022,4520.2,4520.1,0.685]
[1757678512214,1.28315897,4520.2,4520.1,0.685]
[1757678513713,0.1187,4520.0,4519.9,0.5131]
[1757678514018,1.40185897,4520.0,4519.9,0.5131]
[1757678514315,1.40185897,4520.0,4519.9,0.7126]
[1757678517317,0.7022,4519.6,4519.5,0.2911]
[1757678517517,1.28315897,4519.6,4519.5,0.4906]
[1757678518415,1.28315897,4519.6,4519.5,0.685]
[1757678520705,1.28315897,4519.6,4519.5,0.802]
[1757678523119,1.28315897,4519.6,4519.5,0.685]
[1757678523312,0.6899,4519.4,4518.7,0.3028]
[1757678523507,0.6899,4519.4,4518.8,0.4135]
[1757678523508,0.4018,4518.9,4518.8,0.4135]
[1757678523708,0.6899,4518.9,4518.8,0.4135]
[1757678523919,1.27085897,4518.9,4518.8,0.4135]
[1757678524217,1.27085897,4518.9,4518.8,0.7163]
[1757678524530,1.27085897,4518.9,4518.8,0.5065]
[1757678525317,1.27085897,4518.9,4518.8,0.2037]
[1757678525525,1.27085897,4518.9,4518.8,0.7163]
[1757678525824,0.58095897,4518.9,4518.8,0.7163]
[1757678527222,0.58095897,4518.9,4518.8,3.9241]
[1757678527427,3.2078,4519.6,4518.8,8.1454]
[1757678527628,1.07025999,4519.5,4519.4,0.7163]
[1757678528121,1.26455999,4519.5,4519.4,0.7163]
[1757678528823,0.78215999,4519.5,4519.4,0.7163]
[1757678529222,0.0663,4520.0,4519.4,0.7163]
[1757678529421,0.57235267,4519.9,4519.8,0.7163]
[1757678529621,1.26225267,4519.9,4519.8,0.5065]
[1757678533029,1.26225267,4519.9,4519.8,0.7163]
[1757678533230,0.6899,4519.9,4519.8,0.7163]
[1757678535727,1.26252043,4519.9,4519.3,3.2078]
[1757678535932,0.4018,4519.5,4519.4,0.7163]
[1757678536134,0.6899,4519.5,4519.4,0.7163]
[1757678536534,0.2075,4519.4,4519.3,3.9241]
[1757678536732,0.2075,4519.4,4519.3,4.14535]
[1757678536931,0.1623,4520.2,4519.5,0.117]
[1757678537132,0.2075,4519.7,4519.6,0.7163]
[1757678537339,0.4956,4519.7,4519.6,0.7163]
[1757678537928,0.2075,4519.7,4519.6,0.7163]
[1757678538437,0.1623,4520.2,4519.6,0.4135]
[1757678538630,0.97442087,4520.1,4520.0,0.2037]
[1757678538830,0.97442087,4520.1,4520.0,0.5065]
[1757678539030,0.97442087,4520.1,4520.0,0.7163]
[1757678539231,1.26252087,4520.1,4520.0,0.8333]
[1757678540138,1.26252087,4520.1,4520.0,0.5065]
[1757678541237,0.6899,4519.7,4519.6,0.5065]
[1757678544938,0.6899,4519.7,4519.6,0.7163]
[1757678546736,0.0663,4520.2,4520.1,0.3028]
[1757678546939,0.0663,4520.2,4520.1,4.1461]
[1757678547234,0.4956,4521.0,4520.9,0.7163]
[1757678547635,1.25997214,4521.0,4520.9,0.7163]
[1757678549133,0.57007214,4521.0,4520.9,0.7163]
[1757678549341,0.5025,4521.4,4521.3,0.6754]
[1757678549640,1.28264018,4521.4,4521.3,0.6754]
[1757678550834,0.7131,4520.9,4520.8,3.6919]
[1757678551038,0.7131,4520.9,4520.8,3.8832]
[1757678551940,0.5025,4521.2,4521.1,0.6754]
[1757678552835,1.28206372,4521.2,4521.1,0.6754]
[1757678553937,1.28206372,4521.2,4521.1,0.4841]
[1757678554142,0.5235,4521.0,4520.9,0.2906]
[1757678554344,0.8304,4521.0,4520.9,0.2906]
[1757678554545,0.8304,4521.0,4520.9,0.4841]
[1757678556040,0.7131,4520.7,4520.6,0.222]
[1757678556236,0.7131,4520.7,4520.1,3.2078]
[1757678556237,0.1956,4520.2,4520.1,3.4298]
[1757678556443,0.7131,4520.2,4520.1,4.1052]
[1757678557344,0.4062,4520.2,4520.1,4.1052]
[1757678557545,0.1956,4520.2,4520.1,4.1052]
[1757678558842,0.7131,4520.2,4520.1,4.1052]
[1757678559244,0.7131,4520.2,4520.1,3.2078]
[1757678559447,0.4062,4519.7,4519.6,3.2078]
[1757678559649,0.7131,4519.7,4519.2,0.5126]
[1757678559947,0.4062,4519.3,4519.2,0.7061]
[1757678560151,0.7131,4519.3,4519.2,0.7061]
[1757678561646,0.7131,4519.3,4519.2,0.4841]
[1757678563766,0.7131,4519.3,4519.2,0.6754]
[1757678565957,0.4062,4519.3,4519.2,0.6754]
[1757678566666,0.7131,4519.3,4519.2,0.6754]
[1757678567771,0.1956,4519.3,4519.2,0.6754]
[1757678568075,0.5025,4519.6,4519.5,0.8011]
[1757678568273,0.7131,4519.6,4519.5,0.8011]
[1757678568568,0.7131,4519.6,4519.5,0.6754]
[1757678572879,0.4062,4519.2,4519.1,0.1935]
[1757678573073,0.7131,4519.2,4519.1,0.4841]
[1757678574469,0.7131,4519.2,4519.1,0.6754]
[1757678574679,3.5147,4519.7,4519.6,0.1935]
[1757678574880,3.2078,4520.2,4519.6,0.6754]
[1757678575074,1.070786,4520.1,4520.0,0.8011]
[1757678575675,0.1956,4520.1,4520.0,0.8011]
[1757678576473,0.5025,4520.1,4520.0,0.8011]
[1757678577884,0.5106,4520.5,4520.4,0.4038]
[1757678578084,0.7147,4520.5,4520.4,0.693]
[1757678578278,1.28343823,4520.5,4520.4,0.693]
[1757678579384,1.40573823,4520.5,4520.4,0.482]
[1757678579979,1.28343823,4520.5,4520.4,0.693]
[1757678581185,0.7147,4520.5,4520.4,0.693]
[1757678582288,1.40623808,4520.5,4520.4,0.482]
[1757678582589,0.837,4520.5,4520.4,0.482]
[1757678583085,3.2741,4520.7,4520.4,0.693]
[1757678583292,0.56925658,4520.6,4520.5,0.8202]
[1757678583587,1.29095658,4520.6,4520.5,0.8202]
[1757678583786,0.77295658,4520.6,4520.5,0.8202]
[1757678584290,0.56925658,4520.6,4520.5,0.8202]
[1757678584481,0.5176,4520.6,4520.5,0.8202]
[1757678585288,0.7217,4520.6,4520.5,0.8202]
[1757678585489,0.7217,4520.6,4520.5,0.693]
[1757678586384,1.29144769,4520.6,4520.5,0.693]
[1757678586583,1.29144769,4520.6,4520.1,3.2078]
[1757678586789,0.7217,4520.3,4520.2,0.2892]
[1757678586988,0.7217,4520.3,4520.2,0.482]
[1757678587182,0.7217,4520.3,4520.2,0.693]
[1757678588883,0.7217,4520.3,4519.6,0.2892]
[1757678589085,0.56974287,4520.2,4519.6,0.2892]
[1757678589290,0.7217,4519.7,4519.6,0.482]
[1757678589892,0.7217,4519.7,4519.6,0.693]
[1757678593898,0.4078,4519.7,4519.5,0.2892]
[1757678594097,0.7217,4519.6,4519.5,0.2892]
[1757678594501,0.844,4519.5,4519.4,0.222]
[1757678595000,0.844,4519.5,4519.4,0.704]
[1757678595395,0.7217,4519.5,4519.4,0.915]
[1757678596094,0.3139,4519.8,4519.4,0.6258]
[1757678596291,0.5301,4520.0,4519.9,0.482]
[1757678596491,1.10011407,4520.0,4519.9,0.482]
[1757678596896,1.41401407,4520.0,4519.9,0.482]
[1757678597495,1.41401407,4520.0,4519.5,0.2892]
[1757678597701,0.4078,4519.4,4519.3,3.497]
[1757678597896,0.7217,4519.4,4519.3,3.497]
[1757678598102,0.7217,4519.4,4519.3,3.6898]
[1757678599700,0.7217,4519.4,4519.3,0.482]
[1757678602407,1.29173935,4519.4,4519.3,0.482]
[1757678602605,1.29173935,4519.4,4518.6,0.2892]
[1757678602908,0.7217,4518.7,4518.6,0.915]
[1757678604001,0.7217,4518.7,4518.6,0.693]
[1757678604402,0.7217,4518.7,4518.6,0.915]
[1757678605212,0.7217,4518.7,4518.6,0.693]
[1757678605508,0.7217,4518.7,4518.6,0.915]
[1757678606614,0.0663,4518.9,4518.8,0.4038]
[1757678606910,0.0663,4518.9,4518.8,0.693]
[1757678607410,0.5839,4518.9,4518.8,0.693]
[1757678607606,0.788,4518.9,4518.8,0.693]
[1757678609108,0.7217,4518.9,4518.8,0.693]
[1757678609612,0.7217,4518.9,4518.8,0.482]
[1757678609916,0.7217,4518.9,4518.5,0.222]
[1757678610102,0.7217,4518.9,4518.5,0.5269]
[1757678610301,0.4053,4518.6,4518.5,0.43]
[1757678610510,0.4053,4517.8,4517.7,3.2078]
[1757678610705,0.6965,4517.8,4517.7,3.2078]
[1757678611105,0.6965,4517.8,4517.7,3.5127]
[1757678611417,0.6965,4517.8,4517.7,3.2078]
[1757678611616,0.2912,4517.7,4517.0,0.4321]
[1757678611810,0.6965,4517.1,4517.0,0.5129]
[1757678612005,0.1157,4517.0,4516.6,0.3049]
[1757678612309,0.1157,4517.0,4515.0,1.9143991]
[1757678612310,0.6965,4516.7,4516.1,0.3049]
[1757678612911,0.56945811,4516.6,4516.1,0.3049]
[1757678613113,0.6965,4516.2,4516.1,0.717]
[1757678615721,1.2660472,4516.2,4515.8,0.3049]
[1757678615910,0.6965,4515.8,4515.7,0.717]
[1757678617118,1.26642199,4515.8,4515.7,0.717]
[1757678617316,1.26642199,4515.8,4515.7,0.208]
[1757678617522,0.97522199,4515.8,4515.5,0.223]
[1757678617817,0.6965,4515.7,4515.6,0.5129]
[1757678618708,1.26661003,4515.7,4515.6,0.5129]
[1757678618914,1.26661003,4515.7,4515.1,0.3049]
[1757678619226,0.6965,4515.7,4515.6,0.5129]
[1757678619514,0.6965,4515.7,4515.6,0.717]
[1757678620312,0.6965,4515.7,4515.6,0.5129]
[1757678620710,0.1157,4515.5,4514.9,3.5127]
[1757678620917,0.6965,4515.0,4514.9,3.9248]
[1757678621119,0.2076,4515.0,4514.9,0.4121]
[1757678621621,0.4988,4515.0,4514.9,0.4121]
[1757678621823,0.4988,4515.0,4514.9,0.717]
[1757678622017,0.6965,4515.0,4514.9,0.717]
[1757678624022,0.2912,4515.3,4515.0,0.4306]
[1757678624222,0.6965,4515.3,4515.2,0.717]
[1757678625313,3.2078,4515.5,4515.3,0.3049]
[1757678625514,3.2078,4515.5,4515.2,0.4121]
[1757678625515,3.2078,4515.5,4515.4,0.717]
[1757678625828,3.9043,4515.5,4515.4,0.717]
[1757678626015,3.2078,4515.5,4515.4,0.717]
[1757678626514,0.2912,4515.8,4515.4,0.4121]
[1757678626714,0.6965,4515.8,4515.7,0.717]
[1757678629927,0.4053,4515.4,4515.3,0.4121]
[1757678630116,0.6965,4515.4,4515.3,0.717]
[1757678630923,0.4988,4515.4,4515.3,0.717]
[1757678631121,0.2076,4515.4,4515.3,0.717]
[1757678631318,0.4988,4515.7,4515.6,0.717]
[1757678631721,0.6965,4515.7,4515.6,0.717]
[1757678633222,0.6965,4515.7,4515.6,0.5129]
[1757678634026,0.6965,4515.7,4515.6,0.717]
[1757678634226,1.26221195,4515.7,4515.6,0.717]
[1757678636730,1.26221195,4515.7,4515.6,0.5129]
[1757678636922,1.26221195,4515.7,4515.6,0.208]
[1757678637326,1.26221195,4515.7,4515.0,0.1257]
[1757678637529,0.2076,4515.2,4515.1,0.717]
[1757678637932,1.28191195,4515.2,4515.1,0.717]
[1757678638525,1.50331195,4515.2,4515.1,0.717]
[1757678638729,1.50331195,4515.2,4515.1,0.5129]
[1757678638931,1.19741195,4515.2,4515.1,0.7267]
[1757678639332,1.50331195,4515.2,4515.1,0.7267]
[1757678639531,1.19741195,4515.2,4515.1,0.7267]
[1757678640235,0.78711195,4515.2,4515.1,0.7267]
[1757678641131,0.78711195,4515.2,4515.1,4.94817999]
[1757678641840,0.78711195,4515.2,4515.1,4.7267]
[1757678645343,0.78711195,4515.2,4515.1,4.9497]
[1757678645741,0.78711195,4515.2,4515.1,4.7267]
[1757678645944,0.78711195,4515.2,4515.1,4.9497]
[1757678647341,0.78711195,4515.2,4515.1,4.7267]
[1757678647538,0.78711195,4515.2,4515.1,4.9497]
[1757678648144,0.98641195,4515.2,4515.1,4.9497]
[1757678648744,0.98641195,4515.2,4515.1,4.7267]
[1757678648943,1.49501195,4515.2,4515.1,4.9497]
[1757678649944,1.18911195,4515.2,4515.1,4.9497]
[1757678652037,0.98641195,4515.2,4515.1,4.9497]
[1757678653140,0.78711195,4515.2,4515.1,4.9497]
[1757678654644,0.98641195,4515.2,4515.1,4.9497]
[1757678655540,0.98641195,4515.2,4515.1,4.7267]
[1757678655740,1.29231195,4515.2,4515.1,4.7267]
[1757678655947,1.49501195,4515.2,4515.1,4.9497]
[1757678656841,0.98641195,4515.2,4515.1,4.9497]
[1757678657041,0.78711195,4515.2,4515.1,4.9497]
[1757678658044,0.78711195,4515.2,4515.1,0.9497]
[1757678658243,0.0664,4515.4,4515.1,0.9497]
[1757678658439,0.5052,4515.9,4515.3,3.2078]
[1757678658641,0.5052,4515.9,4515.8,3.2078]
[1757678661345,0.3059,4516.0,4515.8,3.2078]
[1757678661545,0.3059,4516.0,4515.9,0.223]
[1757678661952,0.4219,4516.0,4515.9,0.223]
[1757678662250,0.8239,4516.0,4515.9,0.223]
[1757678663842,0.8239,4516.0,4515.8,3.2078]
[1757678664150,0.8239,4516.0,4515.9,0.223]
[1757678664742,0.8239,4516.0,4515.8,3.2078]
[1757678664951,0.7079,4515.9,4515.8,3.4308]
[1757678665151,0.7079,4515.9,4515.8,3.2078]
[1757678665353,0.7079,4515.9,4515.2,3.2078]
[1757678665550,0.116,4515.5,4515.3,0.223]
[1757678666050,0.402,4515.4,4515.3,0.223]
[1757678666257,0.3059,4515.3,4515.2,3.2078]
[1757678666455,0.7079,4515.3,4515.2,3.4308]
[1757678666855,0.7079,4515.3,4515.2,3.2078]
[1757678667154,0.7079,4515.3,4515.2,3.4308]
[1757678669656,0.7079,4515.3,4515.2,3.2078]
[1757678669954,0.7079,4515.3,4515.2,3.4308]
[1757678671062,0.7079,4515.3,4515.2,3.2078]
[1757678672358,1.26253495,4515.3,4515.2,3.2078]
[1757678673469,0.7079,4515.3,4515.2,3.2078]
[1757678675568,0.1988,4513.8,4513.7,3.2078]
[1757678675763,0.4992,4513.8,4513.7,3.2078]
[1757678676068,0.6958,4513.8,4513.7,3.2078]
[1757678677367,0.6958,4513.8,4513.6,0.224]
[1757678677573,0.1188,4513.5,4513.2,3.2078]
[1757678677769,0.4992,4513.3,4513.2,3.2078]
[1757678677960,0.6958,4513.3,4512.8,0.16840799]
[1757678678160,0.6958,4512.9,4512.8,0.16840799]
[1757678678470,0.3004,4512.9,4512.8,0.16840799]
[1757678679967,0.4992,4512.9,4512.8,0.16840799]
[1757678680365,0.4992,4512.9,4512.8,0.39240799]
[1757678681171,0.6958,4512.9,4512.8,0.16840799]
[1757678681372,0.6958,4512.9,4512.8,0.39240799]
[1757678684166,0.3004,4512.9,4512.8,0.39240799]
[1757678685073,0.1188,4513.0,4512.8,0.39240799]
[1757678685268,0.3004,4513.4,4512.8,0.39240799]
[1757678685472,0.3004,4513.3,4513.2,3.2078]
[1757678685672,0.4992,4513.3,4513.2,3.4318]
[1757678686680,0.6958,4513.3,4513.2,3.2078]
[1757678687367,0.6958,4513.3,4513.2,3.4318]
[1757678687775,0.6958,4513.3,4513.2,3.2078]
[1757678687972,0.6958,4513.3,4513.1,0.224]
[1757678688487,0.3004,4512.9,4512.8,0.16840799]
[1757678688669,0.4992,4512.9,4512.8,0.39240799]
[1757678688869,0.3004,4512.9,4512.8,0.39240799]
[1757678692973,0.4992,4512.9,4512.8,0.39240799]
[1757678694985,0.3004,4512.9,4512.8,0.39240799]
[1757678695572,0.3004,4512.9,4512.8,0.16840799]
[1757678695779,0.3004,4512.9,4512.8,0.39240799]
[1757678697282,0.3004,4513.4,4512.8,0.39240799]
[1757678697778,0.3004,4513.4,4513.2,3.2078]
[1757678697977,0.3004,4513.4,4513.3,0.224]
[1757678700285,0.3001,4513.7,4513.3,0.224]
[1757678700675,0.4916,4513.7,4513.3,0.224]
[1757678700984,0.4916,4513.4,4513.3,0.224]
[1757678701483,0.7004,4513.4,4513.2,3.2078]
[1757678701684,0.4003,4513.4,4513.3,0.224]
[1757678702083,0.7004,4513.4,4513.3,0.224]
[1757678703876,0.4003,4513.4,4513.2,3.2078]
[1757678704076,0.4916,4512.9,4512.8,0.16840799]
[1757678704380,0.7004,4512.9,4512.8,0.39240799]
[1757678706085,0.4916,4512.9,4512.8,0.39240799]
[1757678706285,0.7004,4512.9,4512.8,0.39240799]
[1757678709883,0.4916,4512.9,4512.8,0.39240799]
[1757678710581,0.3001,4512.9,4512.8,0.39240799]
[1757678710780,0.4916,4512.9,4512.8,0.39240799]
[1757678711587,0.7004,4512.9,4512.8,0.39240799]
[1757678712689,0.7004,4512.9,4512.8,0.16840799]
[1757678712984,0.7004,4512.9,4512.8,7.99e-06]
[1757678714285,4.7004,4512.9,4512.7,2.57170799]
[1757678714482,0.7004,4512.8,4512.7,2.57170799]
[1757678714985,0.5107,4512.5,4512.4,0.224]
[1757678715182,0.8108,4512.5,4512.4,0.224]
[1757678715579,0.3001,4512.4,4512.2,3.2078]
[1757678715786,0.3001,4512.4,4512.3,0.224]
[1757678715787,0.7004,4512.4,4512.3,0.224]
[1757678716984,0.7004,4512.4,4511.7,3.2078]
[1757678717185,0.7004,4512.4,4511.8,0.224]
[1757678717386,0.4003,4511.8,4511.7,3.2078]
[1757678717590,0.7004,4511.8,4511.7,3.93]
[1757678718086,0.4003,4511.8,4511.7,4.1237]
[1757678718278,0.1915,4511.8,4511.7,4.1237]
[1757678718484,0.922,4511.8,4511.7,3.2078]
[1757678720891,0.922,4511.8,4511.7,3.5112]
[1757678721193,0.922,4511.8,4511.7,3.8997]
[1757678722792,0.6219,4511.8,4511.7,3.8997]
[1757678723199,0.4131,4511.8,4511.7,3.8997]
[1757678723787,0.922,4511.8,4511.7,3.8997]
[1757678725993,0.922,4511.8,4511.7,3.93]
[1757678727392,0.922,4511.8,4511.7,3.706]
[1757678728604,0.922,4511.8,4511.7,0.4982]
[1757678731499,0.4131,4511.8,4511.7,0.7081]
[1757678732590,0.2216,4511.8,4511.7,0.7081]
[1757678732796,0.2216,4511.8,4511.7,3.9159]
[1757678733605,0.2216,4511.8,4511.7,4.1399]
[1757678736701,0.2216,4511.8,4511.7,4.53875]
[1757678737092,0.0664,4512.2,4511.7,4.1399]
[1757678737296,0.0664,4512.2,4512.1,1.11902]
[1757678737503,0.0664,4512.2,4512.1,1.34302]
[1757678737804,0.7007,4512.9,4512.8,0.4024]
[1757678738010,0.7007,4512.9,4512.8,0.7202]
[1757678739511,0.4937,4512.9,4512.8,0.7202]
[1757678739705,0.2982,4513.4,4512.9,0.3178]
[1757678739900,0.4937,4513.4,4513.3,0.1925]
[1757678740106,0.7007,4513.4,4513.3,0.5103]
[1757678741100,0.4025,4513.4,4512.8,0.5418]
[1757678741401,0.7007,4512.9,4512.8,0.9442]
[1757678741900,0.4937,4512.9,4512.8,0.9442]
[1757678742205,0.7007,4512.9,4512.8,0.9442]
[1757678742505,0.7007,4512.9,4512.4,3.2078]
[1757678742704,0.7007,4512.5,4512.4,3.928]
[1757678743007,0.7007,4512.5,4512.4,4.152]
[1757678743804,0.1955,4512.5,4512.4,4.152]
[1757678744004,0.4937,4512.8,4512.7,0.7202]
[1757678746614,0.2982,4513.1,4512.8,0.3178]
[1757678746907,0.4937,4513.1,4513.0,0.7202]
[1757678747103,0.2982,4513.4,4513.1,0.3178]
[1757678747300,0.4937,4513.4,4513.3,0.7202]
[1757678748305,0.1955,4513.4,4513.3,0.7202]
[1757678748502,0.0664,4513.6,4513.5,0.8415]
[1757678748912,0.4937,4513.8,4513.7,0.4024]
[1757678749107,0.4937,4513.8,4513.7,0.7202]
[1757678749804,0.1955,4513.8,4513.7,0.7202]
[1757678750709,0.2982,4514.0,4513.7,0.7202]
[1757678750918,0.1955,4513.9,4513.8,0.7202]
[1757678751117,0.4937,4513.9,4513.8,0.7202]
[1757678751318,0.7007,4513.9,4513.8,0.7202]
[1757678751709,0.1955,4513.9,4513.8,0.7202]
[1757678752310,0.4937,4513.9,4513.8,0.7202]
[1757678752509,0.7007,4513.9,4513.8,0.7202]
[1757678759027,0.4937,4513.9,4513.8,0.7202]
[1757678759219,0.1955,4513.9,4513.8,0.7202]
[1757678759914,0.0664,4514.1,4514.0,0.8357]
[1757678760419,0.2051,4514.2,4514.1,0.72]
[1757678760722,0.5094,4514.2,4514.1,0.72]
[1757678762012,0.7157,4514.2,4514.1,0.2105]
[1757678762221,0.838,4514.0,4513.9,0.4345]
[1757678762418,0.838,4514.0,4513.9,0.2105]
[1757678762618,0.838,4514.0,4513.8,0.224]
[1757678763119,0.838,4513.5,4513.1,0.311]
[1757678763317,0.838,4513.5,4513.4,3.4318]
[1757678763525,0.838,4513.5,4513.4,3.6423]
[1757678764426,0.838,4513.5,4513.4,3.4183]
[1757678764726,0.838,4513.5,4513.0,0.224]
[1757678765227,0.838,4513.5,4513.1,0.311]
[1757678766320,0.838,4513.5,4513.0,0.224]
[1757678767224,0.838,4513.5,4512.8,0.224]
[1757678767424,0.4114,4512.9,4512.8,0.224]
[1757678767725,0.7157,4512.9,4512.7,0.311]
[1757678769117,0.7157,4512.4,4512.3,0.5215]
[1757678770727,0.4114,4512.2,4512.1,0.224]
[1757678771029,0.7157,4512.2,4512.1,0.7455]
[1757678771224,0.7157,4512.2,4512.1,0.944]
[1757678772027,0.7157,4512.2,4512.1,0.72]
[1757678776434,0.7157,4512.2,4512.1,3.9278]
[1757678778331,0.5094,4512.2,4512.1,3.9278]
[1757678779645,0.3043,4512.5,4512.1,3.9278]
[1757678779839,0.5094,4512.9,4512.8,0.2105]
[1757678780141,0.7157,4512.9,4512.8,0.72]
[1757678780638,3.2078,4513.1,4513.0,0.5247]
[1757678780835,3.7172,4513.1,4513.0,0.8357]
[1757678781235,3.9235,4513.1,4513.0,0.72]
[1757678781438,0.7157,4513.1,4513.0,0.72]
[1757678781830,0.4114,4513.1,4512.6,3.4318]
[1757678782030,0.2051,4512.3,4512.2,0.72]
[1757678782235,0.5094,4512.3,4512.2,0.72]
[1757678782430,0.7157,4512.3,4512.2,0.72]
[1757678783441,0.7157,4512.3,4512.2,0.944]
[1757678783942,0.7157,4512.3,4512.2,0.72]
[1757678784346,0.7157,4512.3,4512.2,0.224]
[1757678785143,0.4114,4512.3,4511.9,0.535]
[1757678785445,0.7157,4512.0,4511.9,0.7455]
[1757678785645,0.7157,4512.0,4511.9,0.944]
[1757678787846,0.7157,4512.0,4511.9,0.72]
[1757678788048,0.7157,4512.0,4511.9,0.944]
[1757678788443,0.7157,4512.0,4511.9,0.72]
[1757678790139,0.8307,4512.0,4511.9,0.72]
[1757678790335,0.5094,4512.0,4511.9,0.72]
[1757678791547,0.8324,4512.0,4511.6,3.2078]
[1757678791746,0.3009,4511.9,4511.6,3.5158]
[1757678791941,0.7114,4511.7,4511.6,3.7213]
[1757678792142,0.7114,4511.7,4511.6,3.4133]
[1757678792343,0.3009,4511.6,4511.3,0.532]
[1757678792546,0.7114,4511.4,4511.3,0.9393]
[1757678795545,0.3009,4511.7,4511.3,0.9393]
[1757678795744,3.2078,4511.9,4511.3,0.9393]
[1757678795745,0.4105,4511.8,4511.7,0.4073]
[1757678796049,0.5034,4511.8,4511.7,0.7153]
[1757678796647,3.2078,4511.9,4511.8,0.308]
[1757678796848,3.2078,4511.9,4511.8,0.7153]
[1757678797654,3.7112,4511.9,4511.8,0.7153]
[1757678798049,0.5034,4511.9,4511.8,0.7153]
[1757678798556,0.7114,4511.9,4511.8,0.7153]
[1757678799755,0.7114,4511.9,4511.8,0.4073]
[1757678799950,0.7114,4511.9,4511.8,0.2055]
[1757678800256,0.7114,4511.9,4511.5,0.308]
[1757678800452,0.3009,4511.8,4511.4,3.4318]
[1757678800757,0.7114,4511.8,4511.7,0.5135]
[1757678802862,0.7114,4511.8,4511.7,0.2055]
[1757678803056,0.7114,4511.8,4511.7,0.5135]
[1757678803262,0.7114,4511.8,4511.7,0.7153]
[1757678803562,0.7114,4511.8,4511.7,0.4073]
[1757678803969,0.7114,4511.8,4511.7,0.2055]
[1757678804268,0.7114,4511.8,4511.7,0.5135]
[1757678805667,0.7114,4511.8,4511.7,0.7153]
[1757678805868,0.5034,4511.8,4511.7,0.7153]
[1757678807268,0.3009,4512.3,4511.7,0.4073]
[1757678807470,0.93303,4512.3,4512.2,0.2055]
[1757678807671,1.51864342,4512.3,4512.2,0.2055]
[1757678808773,0.7114,4512.3,4512.2,0.5135]
[1757678809472,0.7114,4512.3,4512.2,0.7153]
[1757678809967,0.0664,4512.5,4512.3,0.308]
[1757678810174,0.5698,4512.5,4512.4,0.7153]
[1757678812066,0.7778,4512.5,4512.4,0.7153]
[1757678813364,0.7114,4512.5,4512.4,0.7153]
[1757678814076,0.8264,4512.5,4512.4,0.4073]
[1757678814268,0.8264,4512.5,4512.1,0.308]
[1757678814669,3.6183,4512.9,4512.8,0.2055]
[1757678814869,4.50399887,4512.9,4512.5,0.308]
[1757678815175,4.50399887,4512.9,4512.5,0.5135]
[1757678815176,0.7114,4512.6,4512.5,0.5135]
[1757678815378,0.7114,4512.6,4512.5,0.7153]
[1757678815566,0.115,4512.5,4512.0,0.125]
[1757678815771,0.5034,4512.1,4512.0,0.8403]
[1757678815972,0.5034,4512.1,4512.0,1.0643]
[1757678816277,0.7114,4512.1,4512.0,0.7153]
[1757678816478,0.7114,4512.1,4512.0,0.9393]
[1757678818276,0.7114,4512.1,4512.0,0.7153]
[1757678818573,0.7132,4511.8,4511.7,0.9409]
[1757678819375,0.5201,4511.8,4511.7,0.9409]
[1757678821179,0.7132,4511.8,4511.7,0.9409]
[1757678821779,0.7132,4511.8,4511.7,0.7169]
[1757678821981,0.7132,4511.8,4511.7,0.7364]
[1757678823077,0.7132,4511.8,4511.7,0.5124]
[1757678823781,0.7132,4511.8,4511.7,0.7169]
[1757678826283,0.2106,4511.8,4511.7,0.7169]
[1757678826487,0.115,4512.5,4511.8,0.3091]
[1757678826686,1.29696576,4512.4,4512.3,0.2033]
[1757678827085,1.29696576,4512.4,4512.1,0.3091]
[1757678827286,0.4037,4512.2,4512.1,0.5124]
[1757678827483,0.7132,4512.2,4512.1,0.5124]
[1757678828286,0.7132,4512.2,4512.1,0.2033]
[1757678828482,0.4037,4512.2,4511.8,0.5331]
[1757678828676,0.7132,4511.9,4511.8,0.224]
[1757678829085,0.7132,4511.9,4511.5,0.3091]
[1757678829281,0.7132,4511.9,4511.6,0.224]
[1757678829987,0.7132,4511.9,4511.8,0.7169]
[1757678830382,0.2106,4511.9,4511.8,0.7169]
[1757678830784,0.5201,4512.3,4512.2,0.7169]
[1757678831188,0.7132,4512.3,4512.2,0.7169]
[1757678831888,0.7132,4511.9,4511.8,3.7202]
[1757678832087,0.7132,4511.9,4511.8,3.9442]
[1757678832290,0.7132,4511.9,4511.8,3.7202]
[1757678832479,0.7132,4511.9,4511.8,3.9442]
[1757678832676,0.7132,4511.9,4511.8,4.1487]
[1757678832879,0.7132,4511.9,4511.8,0.4273]
[1757678833678,0.7132,4511.9,4511.8,0.7364]
[1757678833988,0.3095,4511.8,4511.3,3.5169]
[1757678834185,0.5214,4511.5,4511.4,0.4273]
[1757678834385,0.8309,4511.5,4511.4,0.7364]
[1757678835182,0.8309,4511.5,4511.4,0.9409]
[1757678835387,0.5214,4511.5,4511.0,0.3091]
[1757678835585,0.7132,4511.1,4511.0,0.5124]
[1757678835791,0.7132,4511.1,4511.0,0.7169]
[1757678841490,0.7132,4511.1,4511.0,0.9409]
[1757678843403,3.2078,4511.9,4511.0,0.7543]
[1757678843595,0.7132,4511.7,4511.6,0.5124]
[1757678844893,0.7132,4511.7,4511.6,0.7169]
[1757678846498,0.7132,4511.7,4511.6,0.2033]
[1757678847796,0.7132,4511.7,4511.3,0.3091]
[1757678848096,0.7132,4511.7,4511.0,0.3465]
[1757678848296,0.7132,4511.7,4511.1,0.3151]
[1757678849098,0.7132,4511.7,4511.2,0.223]